[Event "DVM U10 2024"]
[Site "Duesseldorf"]
[Date "2024.12.27"]
[Round "3"]
[White "Hantke, Florian"]
[Black "Thirumal, Shravan"]
[Result "1-0"]
[ECO "B21"]
[WhiteElo "1517"]
[BlackElo "1614"]
[Annotator "NA RC"]
[PlyCount "75"]
[EventDate "2024.12.23"]
[EventType "team-tourn"]
[EventRounds "7"]
[EventCountry "GER"]
[SourceTitle "playchess.com"]
[Source "ChessBase"]
[SourceQuality "1"]
[TimeControl "3300+5"]

1. e4 {[%emt 0:00:04]} c5 {[%emt 0:00:33]} 2. d3 {[%emt 0:00:17]} e6 {[%emt 0:00:10]} 3. f4 {[%emt 0:00:05]} Nc6 {[%emt 0:01:29]} 4. Nf3 {[%emt 0:00:08]} g6 {[%emt 0:05:40]} 5. c3 {[%emt 0:01:30]} Bg7 {[%emt 0:00:48]} 6. Be2 {[%emt 0:01:16]} Nge7 {[%emt 0:08:52]} 7. Na3 {[%emt 0:00:28]} O-O {[%emt 0:00:16]} 8. Nc2 {[%emt 0:00:16]} Rb8 {[%emt 0:02:58]} 9. O-O {[%emt 0:00:38]} d5 {[%emt 0:06:53]} 10. Be3 {[%emt 0:05:36]} d4 {[%emt 0:00:24]} 11. cxd4 {[%emt 0:00:10]} cxd4 {[%emt 0:00:02]} 12. Bf2 {[%emt 0:00:18]} b5 {[%emt 0:00:17]} 13. Rb1 {[%emt 0:01:48]} a5 {[%emt 0:00:14]} 14. b3 {[%emt 0:00:19]} f5 {[%emt 0:00:07]} 15. e5 {[%emt 0:00:27]} Nd5 {[%emt 0:00:15]} 16. Qd2 {[%emt 0:00:42]} Nc3 {[%emt 0:00:18]} 17. Rb2 {[%emt 0:00:23]} b4 {[%emt 0:00:19]} 18. Nfxd4 {[%emt 0:00:43]} Nxd4 {[%emt 0:03:12]} 19. Nxd4 {[%emt 0:00:24]} Qc7 {[%emt 0:02:55]} 20. Rc2 {[%emt 0:02:49]} Bb7 {[%emt 0:01:00]} 21. Nxe6 {[%emt 0:00:36]} Qc6 {[%emt 0:00:36]} 22. Bf3 {[%emt 0:01:47]} Qxe6 {[%emt 0:00:31]} 23. Bxb7 {[%emt 0:01:29]} Rxb7 {[%emt 0:01:26]} 24. Bd4 {[%emt 0:00:42]} Rc7 {[%emt 0:03:39]} 25. Bxc3 {[%emt 0:05:21]} bxc3 {[%emt 0:00:05]} 26. Rxc3 {[%emt 0:00:09]} Qb6+ {[%emt 0:00:51]} 27. Rf2 {[%emt 0:00:45]} Qb4 {[%emt 0:00:00]} 28. Rxc7 {[%emt 0:00:29]} Qxd2 {[%emt 0:00:49]} 29. Rxd2 {[%emt 0:00:17]} Bh6 {[%emt 0:00:31]} 30. g3 {[%emt 0:00:37]} Ra8 {[%emt 0:00:13]} 31. Rdc2 {[%emt 0:00:28]} a4 {[%emt 0:00:11]} 32. Rc8+ {[%emt 0:00:05]} Rxc8 {[%emt 0:01:38]} 33. Rxc8+ {[%emt 0:00:06]} Bf8 {[%emt 0:00:01]} 34. bxa4 {[%emt 0:00:07]} Kf7 {[%emt 0:00:12]} 35. a5 {[%emt 0:00:07]} Be7 {[%emt 0:00:27]} 36. a6 {[%emt 0:00:05]} Ke6 {[%emt 0:00:22]} 37. a7 {[%emt 0:00:06]} Bc5+ {[%emt 0:00:04]} 38. Rxc5 {[%emt 0:00:14]} 1-0

[Event "DVM U10 2024"]
[Site "Duesseldorf"]
[Date "2024.12.27"]
[Round "3"]
[White "Dintinger, Ata Lucien"]
[Black "Riazi, Dominik"]
[Result "1-0"]
[ECO "C29"]
[WhiteElo "1511"]
[BlackElo "1602"]
[Annotator "NA RC"]
[PlyCount "60"]
[EventDate "2024.12.23"]
[EventType "team-tourn"]
[EventRounds "7"]
[EventCountry "GER"]
[SourceTitle "playchess.com"]
[Source "ChessBase"]
[SourceQuality "1"]
[TimeControl "3300+5"]

1. e4 {[%emt 0:00:02]} e5 {[%emt 0:00:01]} 2. Nc3 {[%emt 0:00:06]} Nf6 {[%emt 0:00:04]} 3. f4 {[%emt 0:00:06]} d5 {[%emt 0:00:09]} 4. fxe5 {[%emt 0:00:05]} Nxe4 {[%emt 0:00:08]} 5. Nf3 {[%emt 0:01:16]} Be7 {[%emt 0:08:35]} 6. d4 {[%emt 0:02:29]} O-O {[%emt 0:02:30]} 7. Bd3 {[%emt 0:02:55]} Nxc3 {[%emt 0:00:35]} 8. bxc3 {[%emt 0:00:16]} Bg4 {[%emt 0:01:55]} 9. Bf4 {[%emt 0:01:27]} c5 {[%emt 0:02:13]} 10. Qd2 {[%emt 0:01:19]} cxd4 {[%emt 0:05:49]} 11. cxd4 {[%emt 0:00:05]} Qb6 {[%emt 0:00:05]} 12. c3 {[%emt 0:00:49]} Nd7 {[%emt 0:02:11]} 13. Rb1 {[%emt 0:00:17]} Qc7 {[%emt 0:00:54]} 14. e6 {[%emt 0:00:37]} Qc6 {[%emt 0:03:19]} 15. exd7 {[%emt 0:00:12]} Qxd7 {[%emt 0:01:29]} 16. Ne5 {[%emt 0:00:16]} Qe6 {[%emt 0:00:05]} 17. O-O {[%emt 0:00:00]} f6 {[%emt 0:00:05]} 18. Nxg4 {[%emt 0:00:26]} Qxg4 {[%emt 0:04:06]} 19. Rxb7 {[%emt 0:00:05]} Rfe8 {[%emt 0:00:05]} 20. Re1 {[%emt 0:00:05]} Ba3 {[%emt 0:00:05]} 21. Rxe8+ {[%emt 0:00:05]} Rxe8 {[%emt 0:00:05]} 22. Rxa7 {[%emt 0:00:05]} Bf8 {[%emt 0:00:05]} 23. h3 {[%emt 0:00:05]} Qh4 {[%emt 0:00:05]} 24. Qf2 {[%emt 0:00:05]} Qh5 {[%emt 0:00:05]} 25. Qf3 {[%emt 0:00:05]} Qh4 {[%emt 0:00:05]} 26. Qxd5+ {[%emt 0:00:05]} Kh8 {[%emt 0:00:05]} 27. Qf3 {[%emt 0:00:05]} Qe1+ {[%emt 0:00:05]} 28. Kh2 {[%emt 0:00:05]} Qxc3 {[%emt 0:00:05]} 29. Bb5 {[%emt 0:00:05]} Qxd4 {[%emt 0:00:05]} 30. Bxe8 {[%emt 0:00:05]} Qxa7 {[%emt 0:00:05]} 1-0

[Event "DVM U10 2024"]
[Site "Duesseldorf"]
[Date "2024.12.27"]
[Round "3"]
[White "Liu, Yichen"]
[Black "Jiang, Lucas"]
[Result "0-1"]
[ECO "C45"]
[WhiteElo "1500"]
[BlackElo "2261"]
[Annotator "RC"]
[PlyCount "74"]
[EventDate "2024.12.23"]
[EventType "team-tourn"]
[EventRounds "7"]
[EventCountry "GER"]
[SourceTitle "playchess.com"]
[Source "ChessBase"]
[SourceQuality "1"]
[TimeControl "3300+5"]

1. e4 {[%emt 0:00:03]} e5 {[%emt 0:00:07]} 2. Nf3 {[%emt 0:00:08]} Nc6 {[%emt 0:00:07]} 3. d4 {[%emt 0:00:12]} exd4 {[%emt 0:01:41]} 4. Nxd4 {[%emt 0:00:09]} Bc5 {[%emt 0:00:40]} 5. Be3 {[%emt 0:00:11]} Bxd4 6. Bxd4 {[%emt 0:00:09]} Nf6 {[%emt 0:01:50]} 7. Nc3 {[%emt 0:00:37]} d6 {[%emt 0:00:25]} 8. Bb5 {[%emt 0:00:43]} Bd7 {[%emt 0:00:29]} 9. Be3 {[%emt 0:00:40]} h6 {[%emt 0:00:35]} 10. Qd2 {[%emt 0:01:08]} Qe7 {[%emt 0:02:03]} 11. f3 {[%emt 0:00:25]} a6 {[%emt 0:00:25]} 12. Bd3 {[%emt 0:01:50]} O-O-O {[%emt 0:00:22]} 13. O-O-O {[%emt 0:00:22]} Rhe8 {[%emt 0:00:51]} 14. Bc4 {[%emt 0:00:25]} Ne5 {[%emt 0:00:46]} 15. Bb3 {[%emt 0:00:21]} Be6 {[%emt 0:01:09]} 16. Bd5 {[%emt 0:00:49]} Nc4 {[%emt 0:03:14]} 17. Bxc4 {[%emt 0:00:00]} Bxc4 {[%emt 0:00:28]} 18. Rhe1 {[%emt 0:00:14]} Qe6 {[%emt 0:01:11]} 19. a3 {[%emt 0:00:44]} d5 {[%emt 0:00:27]} 20. b3 {[%emt 0:00:56]} dxe4 {[%emt 0:00:48]} 21. Qf2 {[%emt 0:00:42]} Bd5 {[%emt 0:00:49]} 22. fxe4 {[%emt 0:00:52]} Nxe4 {[%emt 0:00:41]} 23. Nxe4 {[%emt 0:00:26]} Bxe4 {[%emt 0:00:52]} 24. Rxd8+ {[%emt 0:00:24]} Kxd8 {[%emt 0:00:33]} 25. Rd1+ {[%emt 0:00:40]} Kc8 {[%emt 0:00:16]} 26. Bd4 {[%emt 0:00:26]} Rd8 {[%emt 0:00:40]} 27. Bxg7 {[%emt 0:00:41]} Rxd1+ {[%emt 0:00:45]} 28. Kxd1 {[%emt 0:00:13]} Qg4+ {[%emt 0:00:31]} 29. Qe2 {[%emt 0:00:17]} Bxc2+ {[%emt 0:00:22]} 30. Kxc2 {[%emt 0:00:13]} Qxe2+ {[%emt 0:00:11]} 31. Kc3 {[%emt 0:01:39]} Qxg2 {[%emt 0:01:07]} 32. Be5 {[%emt 0:00:15]} Kd7 {[%emt 0:00:14]} 33. Bg3 {[%emt 0:00:14]} f5 {[%emt 0:00:26]} 34. Kd3 {[%emt 0:00:12]} f4 {[%emt 0:00:14]} 35. Be1 {[%emt 0:00:23]} Qxh2 {[%emt 0:00:28]} 36. Ke4 {[%emt 0:00:33]} Qe2+ {[%emt 0:00:08]} 37. Kxf4 {[%emt 0:00:07]} Qxe1 {[%emt 0:00:08]} 0-1

[Event "DVM U10 2024"]
[Site "Duesseldorf"]
[Date "2024.12.27"]
[Round "3"]
[White "Hu, Yinuo"]
[Black "Golnik, Rasmus"]
[Result "1/2-1/2"]
[ECO "B13"]
[WhiteElo "1495"]
[BlackElo "1087"]
[Annotator "NA RC"]
[PlyCount "47"]
[EventDate "2024.12.23"]
[EventType "team-tourn"]
[EventRounds "7"]
[EventCountry "GER"]
[SourceTitle "playchess.com"]
[Source "ChessBase"]
[SourceQuality "1"]
[TimeControl "3300+5"]

1. e4 {[%emt 0:00:01]} c6 {[%emt 0:00:07]} 2. d4 {[%emt 0:00:10]} d5 {[%emt 0:00:05]} 3. exd5 {[%emt 0:00:16]} cxd5 {[%emt 0:00:22]} 4. Nf3 {[%emt 0:00:42]} Nf6 {[%emt 0:00:31]} 5. g3 {[%emt 0:00:31]} Bf5 {[%emt 0:01:18]} 6. Bg2 {[%emt 0:00:18]} e6 {[%emt 0:00:24]} 7. O-O {[%emt 0:00:17]} Bd6 {[%emt 0:00:39]} 8. Nc3 {[%emt 0:00:10]} Nc6 {[%emt 0:00:43]} 9. Be3 {[%emt 0:00:10]} Rf8 {[%emt 0:01:03]} 10. a3 {[%emt 0:00:31]} h6 {[%emt 0:01:51]} 11. Nb5 {[%emt 0:00:33]} Qd7 {[%emt 0:01:14]} 12. Nxd6+ {[%emt 0:00:23]} Qxd6 {[%emt 0:00:14]} 13. Bf4 {[%emt 0:00:32]} Qd7 {[%emt 0:01:55]} 14. Ne5 {[%emt 0:03:23]} Nxe5 {[%emt 0:01:53]} 15. dxe5 {[%emt 0:00:37]} Ne4 {[%emt 0:01:40]} 16. f3 {[%emt 0:01:52]} Nc5 {[%emt 0:01:06]} 17. Qd4 {[%emt 0:02:08]} Rc8 {[%emt 0:01:35]} 18. c3 {[%emt 0:00:14]} Nb3 {[%emt 0:00:25]} 19. Qxa7 {[%emt 0:02:41]} Nxa1 {[%emt 0:00:18]} 20. Rxa1 {[%emt 0:00:09]} Ke7 {[%emt 0:01:13]} 21. Qd4 {[%emt 0:00:59]} Rfd8 {[%emt 0:01:56]} 22. g4 {[%emt 0:01:06]} Bc2 {[%emt 0:01:11]} 23. g5 {[%emt 0:01:22]} h5 {[%emt 0:01:22]} 24. g6 {[%emt 0:00:24]} 1/2-1/2

[Event "DVM U10 2024"]
[Site "Duesseldorf"]
[Date "2024.12.27"]
[Round "3"]
[White "Breaz, Albert"]
[Black "Sauer, Ben"]
[Result "0-1"]
[ECO "B46"]
[WhiteElo "1494"]
[BlackElo "1645"]
[Annotator "NA RC"]
[PlyCount "80"]
[EventDate "2024.12.23"]
[EventType "team-tourn"]
[EventRounds "7"]
[EventCountry "GER"]
[SourceTitle "playchess.com"]
[Source "ChessBase"]
[SourceQuality "1"]
[TimeControl "3300+5"]

1. e4 {[%emt 0:00:01]} c5 {[%emt 0:00:05]} 2. Nf3 {[%emt 0:00:11]} e6 {[%emt 0:00:07]} 3. d4 {[%emt 0:00:09]} cxd4 {[%emt 0:00:22]} 4. Nxd4 {[%emt 0:00:12]} a6 {[%emt 0:00:34]} 5. Nc3 {[%emt 0:00:12]} Nc6 {[%emt 0:00:09]} 6. Nf3 {[%emt 0:00:15]} Qc7 {[%emt 0:00:38]} 7. Bd3 {[%emt 0:00:35]} Nf6 {[%emt 0:01:10]} 8. Bg5 {[%emt 0:00:11]} Be7 {[%emt 0:00:30]} 9. O-O {[%emt 0:00:33]} O-O {[%emt 0:01:28]} 10. Re1 {[%emt 0:00:22]} d6 {[%emt 0:00:40]} 11. Qe2 {[%emt 0:01:40]} Nd7 {[%emt 0:05:20]} 12. Bf4 {[%emt 0:03:09]} b6 {[%emt 0:03:30]} 13. Nd5 {[%emt 0:04:00]} exd5 {[%emt 0:03:30]} 14. exd5 {[%emt 0:00:25]} Nce5 {[%emt 0:01:14]} 15. Nxe5 {[%emt 0:03:23]} dxe5 {[%emt 0:00:35]} 16. Qh5 {[%emt 0:02:44]} g6 {[%emt 0:03:52]} 17. Bxe5 {[%emt 0:00:23]} Nxe5 {[%emt 0:00:59]} 18. Qxe5 {[%emt 0:00:08]} Bd6 {[%emt 0:03:40]} 19. Qe4 {[%emt 0:01:11]} Bxh2+ {[%emt 0:01:39]} 20. Kh1 {[%emt 0:00:18]} Bf5 {[%emt 0:01:46]} 21. Qf3 {[%emt 0:01:42]} Bxd3 {[%emt 0:01:42]} 22. Qxd3 {[%emt 0:00:17]} Bd6 {[%emt 0:01:08]} 23. Re3 {[%emt 0:02:41]} Bc5 {[%emt 0:02:15]} 24. Rh3 {[%emt 0:00:34]} a5 {[%emt 0:03:47]} 25. Qd2 {[%emt 0:00:17]} Rad8 {[%emt 0:01:27]} 26. Qh6 {[%emt 0:00:10]} f6 {[%emt 0:00:56]} 27. Rd1 {[%emt 0:04:25]} Rf7 {[%emt 0:01:25]} 28. Rc3 {[%emt 0:02:42]} Qb7 {[%emt 0:01:08]} 29. Qd2 {[%emt 0:03:36]} Bb4 {[%emt 0:01:20]} 30. a3 {[%emt 0:06:18]} Bxc3 {[%emt 0:00:36]} 31. bxc3 {[%emt 0:01:57]} Rfd7 {[%emt 0:00:48]} 32. c4 {[%emt 0:00:36]} Qc7 {[%emt 0:00:23]} 33. Qd4 {[%emt 0:00:41]} Rd6 {[%emt 0:00:14]} 34. Re1 {[%emt 0:01:36]} Rc8 {[%emt 0:01:34]} 35. Re6 {[%emt 0:03:21]} Rxe6 {[%emt 0:00:15]} 36. dxe6 {[%emt 0:00:03]} Rd8 {[%emt 0:00:25]} 37. Qg4 {[%emt 0:00:52]} Qd6 {[%emt 0:00:32]} 38. Qe4 {[%emt 0:01:10]} Qe5 {[%emt 0:00:46]} 39. Qf3 {[%emt 0:00:26]} Qxe6 {[%emt 0:00:18]} 40. Qf4 {[%emt 0:00:25]} Rd1+ {[%emt 0:00:18]} 0-1

[Event "DVM U10 2024"]
[Site "Duesseldorf"]
[Date "2024.12.27"]
[Round "3"]
[White "Huang, Flora Yueya"]
[Black "Götz, Georg"]
[Result "1-0"]
[ECO "A32"]
[WhiteElo "1481"]
[BlackElo "1284"]
[Annotator "NA"]
[PlyCount "133"]
[EventDate "2024.12.23"]
[EventType "team-tourn"]
[EventRounds "7"]
[EventCountry "GER"]
[SourceTitle "playchess.com"]
[Source "ChessBase"]
[SourceQuality "1"]
[TimeControl "3300+5"]

1. d4 {[%emt 0:00:02]} Nf6 {[%emt 0:00:13]} 2. c4 {[%emt 0:00:06]} c5 {[%emt 0:00:08]} 3. Nf3 {[%emt 0:00:08]} cxd4 {[%emt 0:01:03]} 4. Nxd4 {[%emt 0:00:08]} e6 {[%emt 0:00:32]} 5. Nc3 {[%emt 0:00:10]} Bc5 {[%emt 0:00:12]} 6. Bf4 {[%emt 0:02:15]} d6 {[%emt 0:00:25]} 7. Bg5 {[%emt 0:00:23]} h6 {[%emt 0:01:08]} 8. Bxf6 {[%emt 0:00:51]} Qxf6 {[%emt 0:00:20]} 9. e3 {[%emt 0:00:05]} Bxd4 {[%emt 0:01:12]} 10. Qxd4 {[%emt 0:01:07]} Qxd4 {[%emt 0:00:53]} 11. exd4 {[%emt 0:00:09]} Bd7 {[%emt 0:00:58]} 12. a3 {[%emt 0:00:54]} Nc6 {[%emt 0:00:27]} 13. Rd1 {[%emt 0:00:52]} Ne7 {[%emt 0:01:47]} 14. Bd3 {[%emt 0:01:08]} O-O {[%emt 0:00:59]} 15. O-O {[%emt 0:00:04]} Bc6 {[%emt 0:00:37]} 16. b4 {[%emt 0:00:51]} d5 {[%emt 0:00:50]} 17. c5 {[%emt 0:01:48]} a6 {[%emt 0:00:39]} 18. f4 {[%emt 0:01:57]} Rfe8 {[%emt 0:01:27]} 19. Rde1 {[%emt 0:04:52]} Kf8 {[%emt 0:00:51]} 20. Re5 {[%emt 0:01:02]} Ng6 {[%emt 0:01:04]} 21. Bxg6 {[%emt 0:00:10]} fxg6 {[%emt 0:00:37]} 22. Rfe1 {[%emt 0:00:55]} Kf7 {[%emt 0:00:26]} 23. Rf1 {[%emt 0:06:54]} Rab8 {[%emt 0:01:02]} 24. a4 {[%emt 0:01:30]} b6 {[%emt 0:00:34]} 25. b5 {[%emt 0:00:45]} axb5 {[%emt 0:00:45]} 26. axb5 {[%emt 0:00:03]} bxc5 {[%emt 0:05:13]} 27. bxc6 {[%emt 0:00:57]} cxd4 {[%emt 0:00:22]} 28. Ne2 {[%emt 0:00:03]} Rb4 {[%emt 0:00:55]} 29. Rd1 {[%emt 0:00:08]} Rc4 {[%emt 0:05:49]} 30. Nxd4 {[%emt 0:00:19]} Re7 {[%emt 0:01:05]} 31. g3 {[%emt 0:00:08]} Kf6 {[%emt 0:00:57]} 32. Kf2 {[%emt 0:02:03]} Kf7 {[%emt 0:01:13]} 33. Ke3 {[%emt 0:01:35]} Kf6 {[%emt 0:00:23]} 34. Rd2 {[%emt 0:00:12]} Rc3+ {[%emt 0:01:37]} 35. Rd3 {[%emt 0:00:09]} Rc4 {[%emt 0:00:22]} 36. Rb3 {[%emt 0:00:08]} Rc1 {[%emt 0:01:16]} 37. Rb7 {[%emt 0:03:24]} Rc3+ {[%emt 0:02:00]} 38. Kd2 {[%emt 0:00:12]} Rc4 {[%emt 0:01:18]} 39. Kd3 {[%emt 0:00:05]} Rxb7 {[%emt 0:00:35]} 40. cxb7 {[%emt 0:00:05]} Rb4 {[%emt 0:00:13]} 41. Rxe6+ {[%emt 0:00:11]} Kf7 {[%emt 0:00:14]} 42. Rd6 {[%emt 0:00:25]} Rxb7 {[%emt 0:00:18]} 43. Rxd5 {[%emt 0:00:05]} Rb1 {[%emt 0:00:41]} 44. Nf3 {[%emt 0:02:58]} Rb3+ {[%emt 0:00:39]} 45. Ke2 {[%emt 0:00:06]} Rb2+ {[%emt 0:00:07]} 46. Rd2 {[%emt 0:00:03]} Rb7 {[%emt 0:00:20]} 47. Ne5+ {[%emt 0:00:09]} Kf6 {[%emt 0:00:32]} 48. g4 {[%emt 0:00:18]} g5 {[%emt 0:00:19]} 49. Nd3 {[%emt 0:01:43]} gxf4 {[%emt 0:00:27]} 50. Nxf4 {[%emt 0:00:04]} Kg5 {[%emt 0:00:29]} 51. Kf3 {[%emt 0:00:25]} Rb3+ {[%emt 0:00:36]} 52. Rd3 {[%emt 0:00:04]} Rb4 {[%emt 0:00:15]} 53. Rd5+ {[%emt 0:00:26]} Kf6 {[%emt 0:00:38]} 54. Rf5+ {[%emt 0:00:41]} Ke7 {[%emt 0:00:17]} 55. Nd5+ {[%emt 0:00:04]} Kd6 {[%emt 0:05:35]} 56. Nxb4 {[%emt 0:00:07]} g6 {[%emt 0:00:12]} 57. Rf6+ {[%emt 0:00:13]} Kc5 {[%emt 0:00:07]} 58. Rxg6 {[%emt 0:00:06]} Kxb4 {[%emt 0:00:22]} 59. Rxh6 {[%emt 0:00:05]} Kc5 {[%emt 0:00:09]} 60. g5 {[%emt 0:00:06]} Kd5 {[%emt 0:00:22]} 61. g6 {[%emt 0:00:33]} Ke6 {[%emt 0:00:10]} 62. g7+ {[%emt 0:00:21]} Kf7 {[%emt 0:00:06]} 63. Rg6 {[%emt 0:00:17]} Kg8 {[%emt 0:00:08]} 64. h4 {[%emt 0:00:05]} Kf7 {[%emt 0:00:11]} 65. g8=Q+ {[%emt 0:00:09]} Ke7 {[%emt 0:00:15]} 66. Qh7+ {[%emt 0:00:22]} Kf8 {[%emt 0:00:13]} 67. Rg8# {[%emt 0:00:04]} 1-0

[Event "DVM U10 2024"]
[Site "Duesseldorf"]
[Date "2024.12.27"]
[Round "3"]
[White "Graf, Tom"]
[Black "Marx, Jakob"]
[Result "0-1"]
[ECO "C50"]
[WhiteElo "1456"]
[BlackElo "1591"]
[Annotator "NA RC"]
[PlyCount "42"]
[EventDate "2024.12.23"]
[EventType "team-tourn"]
[EventRounds "7"]
[EventCountry "GER"]
[SourceTitle "playchess.com"]
[Source "ChessBase"]
[SourceQuality "1"]
[TimeControl "3300+5"]

1. e4 {[%emt 0:00:03]} e5 {[%emt 0:00:05]} 2. Nf3 {[%emt 0:00:06]} Nc6 {[%emt 0:00:05]} 3. Bc4 {[%emt 0:00:05]} Bc5 {[%emt 0:00:05]} 4. Nc3 {[%emt 0:00:04]} Nf6 {[%emt 0:00:04]} 5. d3 {[%emt 0:00:10]} d6 {[%emt 0:00:05]} 6. Bg5 {[%emt 0:00:06]} h6 {[%emt 0:00:04]} 7. Bh4 {[%emt 0:00:05]} g5 {[%emt 0:00:55]} 8. Bg3 {[%emt 0:00:30]} Bg4 {[%emt 0:01:00]} 9. h3 {[%emt 0:00:15]} Bh5 {[%emt 0:00:06]} 10. Nd5 {[%emt 0:01:57]} Nd4 {[%emt 0:00:29]} 11. Bh2 {[%emt 0:02:12]} Bxf3 {[%emt 0:00:55]} 12. gxf3 {[%emt 0:00:11]} Nxd5 {[%emt 0:00:52]} 13. Bxd5 {[%emt 0:00:55]} Qf6 {[%emt 0:00:05]} 14. f4 {[%emt 0:00:47]} gxf4 {[%emt 0:01:09]} 15. Bxb7 {[%emt 0:02:04]} Rb8 {[%emt 0:00:17]} 16. Bd5 {[%emt 0:01:22]} Rxb2 {[%emt 0:01:27]} 17. Rc1 {[%emt 0:01:45]} Qh4 {[%emt 0:01:24]} 18. Rf1 {[%emt 0:03:06]} Bb4+ {[%emt 0:01:23]} 19. c3 {[%emt 0:00:38]} Qxh3 {[%emt 0:02:16]} 20. Qa4+ {[%emt 0:00:38]} Ke7 {[%emt 0:00:22]} 21. f3 {[%emt 0:02:11]} Qxh2 {[%emt 0:00:32]} 0-1

[Event "DVM U10 2024"]
[Site "Duesseldorf"]
[Date "2024.12.27"]
[Round "3"]
[White "Aslanov, Kamran"]
[Black "Michelson, Nathan"]
[Result "1-0"]
[ECO "C50"]
[WhiteElo "1451"]
[BlackElo "1198"]
[Annotator "NA RC"]
[PlyCount "55"]
[EventDate "2024.12.23"]
[EventType "team-tourn"]
[EventRounds "7"]
[EventCountry "GER"]
[SourceTitle "playchess.com"]
[Source "ChessBase"]
[SourceQuality "1"]
[TimeControl "3300+5"]

1. e4 {[%emt 0:00:03]} e5 {[%emt 0:00:04]} 2. Nf3 {[%emt 0:00:04]} Nf6 {[%emt 0:00:03]} 3. Nc3 {[%emt 0:00:32]} Nc6 {[%emt 0:00:15]} 4. Bc4 {[%emt 0:00:30]} h6 {[%emt 0:00:10]} 5. d3 {[%emt 0:00:22]} Bc5 {[%emt 0:00:07]} 6. O-O {[%emt 0:01:53]} O-O {[%emt 0:00:09]} 7. h3 {[%emt 0:00:09]} d6 {[%emt 0:00:04]} 8. Be3 {[%emt 0:00:13]} Bxe3 {[%emt 0:01:05]} 9. fxe3 {[%emt 0:00:12]} Be6 {[%emt 0:00:18]} 10. Bb3 {[%emt 0:00:10]} d5 {[%emt 0:01:06]} 11. exd5 {[%emt 0:02:31]} Nxd5 {[%emt 0:00:11]} 12. Nxd5 {[%emt 0:00:17]} Bxd5 {[%emt 0:00:07]} 13. Bxd5 {[%emt 0:00:25]} Qxd5 {[%emt 0:00:01]} 14. c4 {[%emt 0:01:47]} f5 {[%emt 0:02:06]} 15. cxd5 {[%emt 0:00:15]} Nb4 {[%emt 0:02:50]} 16. Qb3 {[%emt 0:00:42]} c5 {[%emt 0:00:22]} 17. a3 {[%emt 0:00:33]} Na6 {[%emt 0:00:08]} 18. Qxb7 {[%emt 0:01:53]} e4 {[%emt 0:00:55]} 19. dxe4 {[%emt 0:00:23]} fxe4 {[%emt 0:00:15]} 20. Ne5 {[%emt 0:01:18]} Rxf1+ {[%emt 0:00:34]} 21. Rxf1 {[%emt 0:00:13]} Rb8 {[%emt 0:00:31]} 22. Qxa6 {[%emt 0:01:11]} Re8 {[%emt 0:00:13]} 23. Qe6+ {[%emt 0:01:45]} Rxe6 {[%emt 0:00:13]} 24. dxe6 {[%emt 0:00:11]} a5 {[%emt 0:00:19]} 25. e7 {[%emt 0:00:10]} Kh7 {[%emt 0:00:05]} 26. e8=Q {[%emt 0:00:22]} c4 {[%emt 0:00:07]} 27. Qg6+ {[%emt 0:00:10]} Kh8 {[%emt 0:00:23]} 28. Rf8# {[%emt 0:00:09]} 1-0

[Event "DVM U10 2024"]
[Site "Duesseldorf"]
[Date "2024.12.27"]
[Round "3"]
[White "Essers, Mathilda Marie"]
[Black "Haberger, Nino"]
[Result "0-1"]
[ECO "D02"]
[WhiteElo "1435"]
[BlackElo "1098"]
[Annotator "NA RC"]
[PlyCount "64"]
[EventDate "2024.12.23"]
[EventType "team-tourn"]
[EventRounds "7"]
[EventCountry "GER"]
[SourceTitle "playchess.com"]
[Source "ChessBase"]
[SourceQuality "1"]
[TimeControl "3300+5"]

1. d4 {[%emt 0:00:02]} e6 {[%emt 0:00:05]} 2. Nf3 {[%emt 0:00:19]} d5 {[%emt 0:00:08]} 3. Bf4 {[%emt 0:00:15]} Nc6 {[%emt 0:00:08]} 4. e3 {[%emt 0:00:09]} Bd7 {[%emt 0:00:08]} 5. Nbd2 {[%emt 0:00:34]} Nf6 {[%emt 0:00:10]} 6. a3 {[%emt 0:00:25]} Be7 {[%emt 0:00:13]} 7. Bd3 {[%emt 0:00:14]} O-O {[%emt 0:00:09]} 8. O-O {[%emt 0:00:09]} a6 {[%emt 0:00:38]} 9. c4 {[%emt 0:00:37]} b6 {[%emt 0:00:37]} 10. Rc1 {[%emt 0:00:57]} Re8 {[%emt 0:00:48]} 11. c5 {[%emt 0:00:56]} bxc5 {[%emt 0:00:09]} 12. dxc5 {[%emt 0:00:22]} Nh5 {[%emt 0:00:53]} 13. Be5 {[%emt 0:01:25]} Nxe5 {[%emt 0:00:25]} 14. Nxe5 {[%emt 0:00:12]} Nf6 {[%emt 0:00:16]} 15. f4 {[%emt 0:00:55]} Bb5 {[%emt 0:00:29]} 16. Bxb5 {[%emt 0:00:35]} axb5 {[%emt 0:00:12]} 17. Qe2 {[%emt 0:00:33]} Qb8 {[%emt 0:00:29]} 18. c6 {[%emt 0:00:47]} Bd6 {[%emt 0:00:25]} 19. Ndf3 {[%emt 0:01:21]} h6 {[%emt 0:00:23]} 20. Qc2 {[%emt 0:01:14]} Qb6 {[%emt 0:00:26]} 21. Qc3 {[%emt 0:00:57]} Red8 {[%emt 0:00:39]} 22. Kh1 {[%emt 0:01:01]} Ne4 {[%emt 0:00:37]} 23. Nd7 {[%emt 0:02:05]} Rxd7 {[%emt 0:00:23]} 24. Qe1 {[%emt 0:01:17]} Rdd8 {[%emt 0:00:10]} 25. Ne5 {[%emt 0:00:57]} Bxe5 {[%emt 0:00:18]} 26. fxe5 {[%emt 0:00:16]} Rf8 {[%emt 0:00:29]} 27. Qh4 {[%emt 0:01:04]} Qxe3 {[%emt 0:00:30]} 28. Qe7 {[%emt 0:00:34]} Rac8 {[%emt 0:00:28]} 29. Rce1 {[%emt 0:01:20]} Nf2+ {[%emt 0:00:39]} 30. Kg1 {[%emt 0:00:46]} Nh3+ {[%emt 0:00:13]} 31. Kh1 {[%emt 0:00:17]} Qg1+ 32. Rxg1 {[%emt 0:00:26]} Nf2# {[%emt 0:00:22]} 0-1